bitfinex-derivatives/quotes_BTCF0:USTF0_20250108
["timestamp","ask_amount","ask_price","bid_price","bid_amount"]
[1736365615900,0.052983,94394.0,94377.0,0.3608]
[1736365616101,0.2503,94399.0,94387.0,0.052986]
[1736365616400,0.163,94399.0,94397.0,0.052981]
[1736365616804,0.2,94400.0,94399.0,0.05298]
[1736365617399,0.2,94400.0,94399.0,1.55298]
[1736365618399,0.2,94400.0,94399.0,1.5648576]
[1736365619508,0.205,94400.0,94399.0,1.5648576]
[1736365619700,0.205,94400.0,94399.0,1.5118776]
[1736365619901,0.205,94400.0,94395.0,0.3608]
[1736365619902,0.052981,94397.0,94395.0,0.3608]
[1736365621410,0.0868,94396.0,94386.0,0.3608]
[1736365621709,0.0868,94396.0,94376.0,0.00158922]
[1736365621710,0.05299,94381.0,94376.0,0.00158922]
[1736365621899,0.052986,94387.0,94376.0,0.05458122]
[1736365622105,0.216187,94386.0,94376.0,0.05458122]
[1736365622301,0.1632,94386.0,94376.0,0.00158922]
[1736365622505,0.052989,94383.0,94376.0,0.00158922]
[1736365622903,0.05299,94381.0,94376.0,0.00158922]
[1736365623104,0.052991,94380.0,94376.0,0.00158922]
[1736365624216,0.052992,94378.0,94376.0,0.00158922]
[1736365624410,0.3608,94377.0,94366.0,0.3608]
[1736365624610,0.052993,94375.0,94366.0,0.3608]
[1736365624807,0.0795,94374.0,94366.0,0.3608]
[1736365625107,0.1642,94386.0,94377.0,0.052992]
[1736365625313,0.1642,94386.0,94379.0,0.3608]
[1736365625509,0.1642,94386.0,94380.0,0.05299]
[1736365625714,0.1632,94386.0,94382.0,0.052989]
[1736365626009,0.1632,94386.0,94383.0,1.5]
[1736365626211,0.052987,94385.0,94383.0,1.5]
[1736365626404,0.1632,94386.0,94379.0,0.01200288]
[1736365626605,0.052989,94382.0,94379.0,0.002]
[1736365626806,0.052989,94382.0,94380.0,1.5]
[1736365627317,0.052989,94382.0,94379.0,0.002]
[1736365627613,0.05299,94381.0,94379.0,0.002]
[1736365627803,0.05299,94381.0,94380.0,1.5]
[1736365628004,0.1642,94386.0,94380.0,1.5]
[1736365628208,0.1642,94386.0,94385.0,0.3608]
[1736365628917,0.001,94386.0,94385.0,1.8608]
[1736365629215,0.2,94400.0,94398.0,0.05298]
[1736365630217,0.2,94400.0,94396.0,0.3608]
[1736365630813,0.2,94400.0,94398.0,0.001]
[1736365632405,0.2,94400.0,94399.0,0.3608]
[1736365632610,0.1,94420.0,94419.0,0.052968]
[1736365632807,0.1,94420.0,94419.0,0.413768]
[1736365633009,0.1,94420.0,94419.0,1.913768]
[1736365633617,0.039,94420.0,94419.0,1.913768]
[1736365633919,0.035,94420.0,94419.0,1.92578657]
[1736365635019,0.036,94420.0,94419.0,1.92778657]
[1736365635621,0.035,94420.0,94419.0,1.92578657]
[1736365635817,0.036,94420.0,94419.0,1.92778657]
[1736365636212,0.035,94420.0,94419.0,1.92578657]
[1736365636413,0.088968,94420.0,94419.0,0.3628]
[1736365636716,0.052975,94408.0,94404.0,0.052976]
[1736365636916,0.3968,94420.0,94401.0,0.3608]
[1736365637113,0.052972,94413.0,94401.0,0.3608]
[1736365637313,0.052972,94413.0,94408.0,0.052974]
[1736365637519,0.052972,94413.0,94409.0,0.052974]
[1736365637913,0.3608,94410.0,94398.0,0.01149409]
[1736365638209,0.3608,94410.0,94392.0,0.3608]
[1736365638210,0.052978,94403.0,94396.0,0.052981]
[1736365638414,0.052976,94406.0,94399.0,0.05298]
[1736365638825,0.052976,94406.0,94392.0,1.87250581]
[1736365639122,0.052982,94395.0,94392.0,0.01170581]
[1736365639323,0.3608,94394.0,94390.0,0.052985]
[1736365639525,0.3608,94394.0,94391.0,1.5]
[1736365639822,0.3608,94394.0,94391.0,1.552984]
[1736365640013,0.0831,94393.0,94391.0,1.552984]
[1736365642013,0.3608,94413.0,94392.0,0.3608]
[1736365642213,0.052973,94412.0,94407.0,0.052975]
[1736365642418,0.4445,94413.0,94400.0,0.16197331]
[1736365642419,0.4445,94413.0,94408.0,0.052974]
[1736365642623,0.4445,94413.0,94392.0,0.3608]
[1736365642823,0.4445,94413.0,94407.0,0.052975]
[1736365643023,0.4445,94413.0,94392.0,0.3608]
[1736365643321,0.052973,94411.0,94392.0,0.3608]
[1736365643617,0.4445,94413.0,94392.0,0.3608]
[1736365643809,0.4445,94413.0,94412.0,0.052972]
[1736365644422,0.4445,94413.0,94412.0,1.552972]
[1736365646029,0.4475,94413.0,94412.0,1.552972]
[1736365646519,0.4475,94413.0,94412.0,1.53097199]
[1736365646913,0.4475,94413.0,94412.0,1.5]
[1736365647320,0.4445,94413.0,94379.0,0.052991]
[1736365647527,0.052978,94402.0,94392.0,0.052984]
[1736365647715,0.052978,94402.0,94393.0,1.5]
[1736365648024,0.052978,94402.0,94393.0,1.552983]
[1736365648227,0.3608,94405.0,94393.0,1.552983]
[1736365648419,0.3608,94405.0,94395.0,0.052982]
[1736365648621,0.052978,94402.0,94395.0,0.052982]
[1736365648926,0.053978,94402.0,94395.0,0.052982]
[1736365649130,0.053978,94402.0,94396.0,0.052981]
[1736365649521,0.001,94402.0,94397.0,0.05298]
[1736365649923,0.001,94402.0,94401.0,0.413779]
[1736365650722,0.001,94402.0,94401.0,1.913779]
[1736365650924,0.4445,94413.0,94412.0,0.052972]
[1736365651428,0.052973,94412.0,94406.0,0.052975]
[1736365651628,0.052973,94412.0,94399.0,0.3608]
[1736365651826,0.052973,94411.0,94399.0,0.3608]
[1736365652019,0.052974,94410.0,94407.0,1.5]
[1736365652323,0.4445,94413.0,94399.0,0.052979]
[1736365652519,0.052976,94407.0,94401.0,0.052978]
[1736365652728,0.052976,94406.0,94401.0,0.052978]
[1736365652924,0.4445,94413.0,94396.0,0.052981]
[1736365653133,0.052983,94394.0,94392.0,0.052984]
[1736365653429,0.052983,94394.0,94393.0,0.052983]
[1736365654221,0.052979,94400.0,94390.0,0.37270661]
[1736365654526,0.052979,94400.0,94398.0,0.05298]
[1736365655119,0.3608,94404.0,94400.0,0.052979]
[1736365655725,0.001,94400.0,94393.0,0.002]
[1736365655932,0.413781,94396.0,94393.0,0.002]
[1736365656125,0.052982,94394.0,94393.0,0.002]
[1736365657331,0.052987,94386.0,94385.0,0.0112655]
[1736365657630,0.052988,94385.0,94380.0,1.5]
[1736365657831,0.3608,94386.0,94380.0,1.5]
[1736365658017,0.3608,94386.0,94375.0,0.01163329]
[1736365658223,0.3608,94376.0,94371.0,0.052995]
[1736365658724,0.413793,94376.0,94372.0,1.5]
[1736365659121,0.413793,94376.0,94372.0,0.052994]
[1736365659518,0.413793,94376.0,94366.0,1.5]
[1736365659519,0.3608,94376.0,94366.0,1.5]
[1736365659724,0.3608,94376.0,94356.0,0.36238948]
[1736365659725,0.053003,94357.0,94356.0,0.00158948]
[1736365659920,0.413803,94357.0,94356.0,0.00158948]
[1736365660128,0.053007,94351.0,94345.0,1.5]
[1736365660334,0.3608,94357.0,94345.0,1.5]
[1736365660536,0.053009,94346.0,94345.0,1.5]
[1736365660835,0.053009,94346.0,94344.0,0.01161254]
[1736365661024,0.053009,94346.0,94339.0,0.053013]
[1736365661527,0.3608,94347.0,94340.0,0.053012]
[1736365661733,0.001,94346.0,94345.0,0.006]
[1736365663325,0.0837,94346.0,94345.0,0.006]
[1736365663731,0.0827,94346.0,94339.0,0.007]
[1736365664026,0.053013,94341.0,94339.0,0.007]
[1736365664230,0.0853,94340.0,94331.0,0.01174964]
[1736365664535,0.3608,94332.0,94322.0,0.053023]
[1736365665231,0.3608,94332.0,94309.0,0.05303]
[1736365665232,0.053023,94322.0,94309.0,0.05303]
[1736365665429,0.053023,94322.0,94312.0,0.053028]
[1736365666238,0.3608,94323.0,94320.0,0.01132404]
[1736365666925,0.413823,94323.0,94309.0,0.05303]
[1736365667124,0.001,94322.0,94310.0,0.05303]
[1736365667322,0.0839,94322.0,94310.0,0.05303]
[1736365667637,0.0839,94322.0,94318.0,0.01179693]
[1736365669331,0.0829,94322.0,94318.0,0.01179693]
[1736365669537,0.0829,94322.0,94321.0,1.50159018]
[1736365670129,0.0839,94322.0,94321.0,1.50159018]
[1736365670832,0.0829,94322.0,94321.0,1.50159018]
[1736365671731,0.0829,94322.0,94321.0,1.50259018]
[1736365672634,0.135923,94322.0,94321.0,1.50259018]
[1736365672829,0.0829,94322.0,94321.0,1.50259018]
[1736365673337,0.0829,94322.0,94321.0,1.55561318]
[1736365673729,0.3608,94331.0,94328.0,0.053019]
[1736365674034,0.413818,94331.0,94323.0,0.053022]
[1736365674338,0.053019,94329.0,94323.0,0.053022]
[1736365675241,0.053019,94329.0,94323.0,0.056022]
[1736365675430,0.3608,94331.0,94323.0,0.003]
[1736365675736,0.053021,94326.0,94323.0,0.003]
[1736365675939,0.053021,94326.0,94323.0,0.001]
[1736365676237,0.053019,94330.0,94323.0,0.001]
[1736365676444,0.053019,94330.0,94323.0,0.054022]
[1736365676732,0.3618,94331.0,94323.0,0.054022]
[1736365676938,0.3618,94331.0,94324.0,0.053022]
[1736365677135,0.3608,94331.0,94324.0,0.053022]
[1736365677326,0.001,94326.0,94323.0,0.001]
[1736365677523,0.001,94326.0,94325.0,0.053021]
[1736365677729,0.3608,94331.0,94323.0,0.001]
[1736365677931,0.3608,94331.0,94321.0,0.00159018]
[1736365678326,0.3608,94331.0,94327.0,0.05302]
[1736365678542,0.3608,94331.0,94328.0,0.05302]
[1736365679038,0.05302,94327.0,94323.0,0.004]
[1736365679240,0.3608,94331.0,94323.0,0.004]
[1736365679438,0.3608,94331.0,94324.0,0.053022]
[1736365679651,0.3608,94331.0,94323.0,0.004]
[1736365680037,0.3608,94331.0,94324.0,0.053022]
[1736365680230,0.3608,94331.0,94323.0,0.004]
[1736365680435,0.413818,94331.0,94321.0,0.05461318]
[1736365680632,0.3608,94331.0,94327.0,0.001]
[1736365680843,0.3608,94331.0,94330.0,0.053018]
[1736365681141,0.0855,94338.0,94337.0,0.053015]
[1736365681641,0.3608,94339.0,94338.0,0.053014]
[1736365682033,0.3608,94339.0,94338.0,1.553014]
[1736365684540,0.3608,94339.0,94338.0,0.06677678]
[1736365684541,0.3618,94339.0,94338.0,0.06677678]
[1736365685148,0.414813,94339.0,94338.0,0.06477678]
[1736365685336,0.414813,94339.0,94338.0,0.01376278]
[1736365685640,0.414813,94339.0,94338.0,0.002]
[1736365685841,0.053021,94327.0,94321.0,0.05461318]
[1736365686034,0.082,94326.0,94321.0,0.00159018]
[1736365686235,0.053024,94320.0,94319.0,0.01137965]
[1736365686528,0.053028,94313.0,94300.0,0.1]
[1736365686733,0.3608,94320.0,94300.0,0.27358491]
[1736365686933,0.3608,94320.0,94313.0,0.053028]
[1736365687532,0.3608,94320.0,94314.0,1.5]
[1736365687946,0.3618,94320.0,94313.0,0.053028]
[1736365688336,0.3618,94320.0,94307.0,0.3608]
[1736365688642,0.3608,94320.0,94316.0,0.053026]
[1736365688837,0.0816,94325.0,94324.0,0.053022]
[1736365689038,0.0806,94326.0,94324.0,0.053022]
[1736365689235,0.3608,94340.0,94316.0,0.3608]
[1736365689545,0.413813,94340.0,94317.0,0.3608]
[1736365689738,0.3608,94340.0,94325.0,1.5]
[1736365689937,0.05302,94327.0,94318.0,0.053025]
[1736365690136,0.133621,94326.0,94318.0,0.053025]
[1736365690337,0.133621,94326.0,94317.0,0.3608]
[1736365690338,0.053023,94322.0,94317.0,0.3608]
[1736365690536,0.053023,94322.0,94316.0,0.01255791]
[1736365690738,0.0806,94326.0,94316.0,0.01255791]
[1736365690939,0.053022,94325.0,94316.0,0.06558391]
[1736365691144,0.3608,94323.0,94316.0,0.06458391]
[1736365691447,0.053025,94318.0,94316.0,0.001]
[1736365691743,0.053027,94316.0,94300.0,0.1]
[1736365691943,0.3608,94305.0,94300.0,0.1]
[1736365692141,0.3608,94305.0,94300.0,0.11180021]
[1736365692746,0.079,94317.0,94300.0,0.11180021]
[1736365693032,0.0835,94322.0,94307.0,0.16197331]
[1736365693234,0.0835,94322.0,94320.0,0.053024]
[1736365693545,0.0835,94322.0,94308.0,0.4421]
[1736365693745,0.0835,94322.0,94320.0,0.053024]
[1736365694343,0.3608,94340.0,94317.0,0.3608]
[1736365694539,0.00064,94349.0,94331.0,0.3608]
[1736365694540,0.0849,94349.0,94331.0,0.3608]
[1736365694739,0.3608,94353.0,94347.0,0.053009]
[1736365695749,0.001,94349.0,94347.0,0.053009]
[1736365697145,0.001,94349.0,94348.0,0.3608]
[1736365697448,0.0846,94374.0,94358.0,0.053003]
[1736365697638,0.052998,94368.0,94358.0,0.053003]
[1736365697840,0.052998,94368.0,94350.0,0.16197331]
[1736365698147,0.0846,94374.0,94361.0,0.053001]
[1736365698345,0.3608,94362.0,94348.0,1.86136]
[1736365698644,0.0782,94361.0,94348.0,1.8608]
[1736365698847,0.0782,94361.0,94348.0,0.3608]
[1736365699044,0.053006,94356.0,94348.0,0.3608]
[1736365699552,0.0782,94361.0,94353.0,0.053008]
[1736365699848,0.053004,94360.0,94350.0,0.16197331]
[1736365700041,0.053004,94360.0,94350.0,0.21498231]
[1736365700244,0.053004,94360.0,94353.0,0.053008]
[1736365700649,0.002,94362.0,94360.0,0.053004]
[1736365701149,0.002,94362.0,94355.0,0.053006]
[1736365701351,0.002,94362.0,94359.0,0.053005]
[1736365701550,0.3608,94370.0,94361.0,0.053005]
[1736365701947,0.004,94362.0,94361.0,0.053005]
[1736365702138,0.004,94362.0,94361.0,0.413805]
[1736365702340,0.3608,94394.0,94361.0,0.3608]
[1736365702552,0.052987,94392.0,94383.0,0.052992]
[1736365702747,0.052989,94389.0,94379.0,0.052994]
[1736365703154,0.0798,94393.0,94375.0,0.16197331]
[1736365703348,0.3608,94376.0,94368.0,0.053]
[1736365703550,0.3608,94376.0,94361.0,0.37238067]
[1736365703749,0.3608,94376.0,94375.0,0.052996]
[1736365703945,0.3608,94376.0,94361.0,0.37238067]
[1736365704444,0.0754,94384.0,94361.0,0.37238067]
[1736365704648,0.0754,94384.0,94370.0,0.16197331]
[1736365704844,0.052991,94381.0,94371.0,0.052997]
[1736365705051,0.052991,94381.0,94379.0,0.004]
[1736365705452,0.052991,94381.0,94361.0,0.37238067]
[1736365705649,0.052991,94381.0,94370.0,0.16197331]
[1736365705847,0.0764,94384.0,94383.0,0.05299]
[1736365705848,0.001,94384.0,94383.0,0.05299]
[1736365706356,0.001,94381.0,94379.0,0.3678]
[1736365706545,0.001,94381.0,94380.0,0.052994]
[1736365707456,0.001,94381.0,94380.0,1.552994]
[1736365708453,0.003,94384.0,94383.0,0.052992]
[1736365708641,0.002,94384.0,94383.0,0.052992]
[1736365709162,0.052989,94390.0,94380.0,1.50156]
[1736365709163,0.3608,94390.0,94380.0,0.00556]
[1736365709451,0.3608,94381.0,94380.0,0.005]
[1736365709846,0.052992,94385.0,94380.0,0.001]
[1736365710046,0.3608,94382.0,94380.0,0.001]
[1736365710247,0.3608,94382.0,94379.0,0.06457124]
[1736365710442,0.052992,94385.0,94379.0,0.06457124]
[1736365711444,0.052994,94380.0,94379.0,0.01157624]
[1736365711758,0.3608,94382.0,94371.0,0.052999]
[1736365711948,0.052999,94372.0,94361.0,0.053005]
[1736365712146,0.053,94370.0,94361.0,0.06460489]
[1736365712452,0.0791,94369.0,94365.0,0.053002]
[1736365713452,0.0791,94369.0,94360.0,0.16197331]
[1736365713453,0.0791,94369.0,94367.0,0.413801]
[1736365713648,0.001,94369.0,94368.0,0.053001]
[1736365714354,0.0749,94385.0,94368.0,1.553001]
[1736365714559,0.0749,94385.0,94383.0,0.052992]
[1736365715352,0.08,94407.0,94398.0,0.052984]
[1736365715660,0.0749,94406.0,94401.0,0.052982]
[1736365715958,0.0749,94406.0,94402.0,1.5]
[1736365716253,0.3608,94404.0,94402.0,1.5]
[1736365717456,0.3618,94404.0,94402.0,1.5]
[1736365717758,0.003,94404.0,94402.0,1.5]
[1736365718457,0.003,94404.0,94402.0,1.552981]
[1736365719461,0.002,94404.0,94402.0,1.552981]
[1736365719653,0.001,94404.0,94402.0,1.552981]
[1736365719849,0.003,94404.0,94403.0,0.052981]
[1736365720553,0.003,94404.0,94403.0,1.552981]
[1736365721560,0.052966,94431.0,94419.0,0.052972]
[1736365721851,0.3608,94439.0,94419.0,0.052972]
[1736365721852,0.0761,94426.0,94419.0,0.052972]
[1736365722460,0.0761,94426.0,94419.0,1.552972]
[1736365723466,0.0761,94426.0,94419.0,1.556972]
[1736365723854,0.0761,94426.0,94419.0,1.557972]
[1736365724561,0.0761,94426.0,94425.0,0.052969]
[1736365725164,0.0761,94426.0,94425.0,1.552969]
[1736365725548,0.3608,94443.0,94425.0,1.552969]
[1736365725749,0.3608,94443.0,94439.0,0.052961]
[1736365726357,0.3608,94443.0,94439.0,1.552961]
[1736365727158,0.3608,94443.0,94431.0,0.3608]
[1736365727363,0.052963,94436.0,94431.0,0.3608]
[1736365727661,0.3608,94432.0,94411.0,0.3608]
[1736365727854,0.052968,94427.0,94419.0,0.052972]
[1736365728052,0.1522,94426.0,94419.0,0.052972]
[1736365728260,0.1522,94426.0,94422.0,0.41377]
[1736365728569,0.1522,94426.0,94423.0,0.05297]
[1736365728767,0.1522,94426.0,94425.0,0.052969]
[1736365729969,0.1522,94426.0,94423.0,0.002]
[1736365730469,0.1522,94426.0,94425.0,0.001]
[1736365731053,0.1522,94426.0,94423.0,0.002]
[1736365731253,0.078,94428.0,94427.0,0.052968]
[1736365731767,0.0728,94439.0,94438.0,0.052962]
[1736365732159,0.0728,94439.0,94438.0,1.552962]
[1736365732558,0.1,94440.0,94438.0,1.5]
[1736365732761,0.1,94440.0,94439.0,0.052961]
[1736365733468,0.1,94440.0,94439.0,0.413761]
[1736365734667,0.1,94440.0,94439.0,0.415761]
[1736365735168,0.1,94440.0,94439.0,0.416761]
[1736365736368,0.1,94440.0,94439.0,0.06641326]
[1736365736768,0.1,94440.0,94420.0,0.16197331]
[1736365736972,0.3608,94436.0,94420.0,0.16197331]
[1736365737359,0.3608,94436.0,94418.0,0.3608]
[1736365737566,0.052963,94435.0,94418.0,0.3608]
[1736365737766,0.052963,94435.0,94431.0,0.052965]
[1736365738167,0.052963,94435.0,94427.0,0.052967]
[1736365738372,0.052965,94433.0,94427.0,0.052967]
[1736365738571,0.0766,94432.0,94421.0,1.50056]
[1736365738773,0.0766,94432.0,94427.0,0.052967]
[1736365739677,0.0766,94432.0,94428.0,0.052967]
[1736365740166,0.0766,94432.0,94421.0,1.50064]
[1736365740366,0.0766,94432.0,94421.0,1.5]
[1736365740575,0.129565,94432.0,94421.0,1.5]
[1736365740775,0.129565,94432.0,94427.0,0.004]
[1736365741069,0.1,94440.0,94439.0,0.052961]
[1736365741473,0.05854622,94440.0,94439.0,0.052961]
[1736365741675,0.04458622,94440.0,94439.0,0.052961]
[1736365741866,0.04458622,94440.0,94439.0,1.552961]
[1736365743677,0.04558622,94440.0,94439.0,1.552961]
[1736365744080,0.09854622,94440.0,94439.0,0.06402703]
[1736365745079,0.09854622,94440.0,94439.0,0.06802703]
[1736365745672,0.09854622,94440.0,94439.0,0.01506603]
[1736365745875,0.052963,94435.0,94434.0,0.052963]
[1736365747470,0.3608,94437.0,94434.0,0.052963]
[1736365747676,0.09754722,94440.0,94435.0,0.052963]
[1736365748073,0.09754722,94440.0,94436.0,0.052962]
[1736365748466,0.3608,94439.0,94436.0,0.052962]
[1736365748671,0.413761,94439.0,94434.0,0.002]
[1736365748873,0.3608,94439.0,94434.0,0.002]
[1736365749069,0.3608,94439.0,94436.0,0.052962]
[1736365749273,0.3608,94439.0,94438.0,0.052962]
[1736365749478,0.04458622,94440.0,94435.0,0.3608]
[1736365749680,0.04458622,94440.0,94439.0,0.052961]
[1736365749877,0.03871623,94440.0,94439.0,0.052961]
[1736365750178,0.03071623,94440.0,94439.0,0.052961]
[1736365750375,0.03071623,94440.0,94439.0,1.552961]
[1736365750574,0.00039285,94440.0,94439.0,1.552961]
[1736365751282,0.00139285,94440.0,94439.0,1.559961]
[1736365751675,0.00139285,94440.0,94439.0,1.562961]
[1736365752277,0.00139285,94440.0,94439.0,0.062961]
[1736365752473,0.00139285,94440.0,94439.0,0.059961]
[1736365752680,0.00139285,94440.0,94439.0,0.061961]
[1736365753084,0.00039285,94440.0,94439.0,0.054961]
[1736365753392,0.00139285,94440.0,94439.0,0.061961]
[1736365754784,0.00039285,94440.0,94439.0,0.058961]
[1736365754984,0.00039285,94440.0,94439.0,1.558961]
[1736365755572,0.00039285,94440.0,94439.0,1.556961]
[1736365755881,0.00039285,94440.0,94439.0,0.056961]
[1736365756983,0.05335285,94440.0,94439.0,0.056961]
[1736365757683,0.052962,94437.0,94436.0,0.00056]
[1736365757882,0.3608,94438.0,94437.0,0.052962]
[1736365758281,0.05335385,94440.0,94437.0,0.052962]
[1736365758483,0.052961,94439.0,94437.0,0.052962]
[1736365759388,0.052961,94438.0,94437.0,0.056962]
[1736365760176,0.052961,94438.0,94437.0,0.06834292]
[1736365760380,0.052961,94438.0,94437.0,0.01538092]
[1736365760587,0.052961,94438.0,94437.0,0.01738092]
[1736365761385,0.052961,94438.0,94437.0,0.01638092]
[1736365761888,0.052961,94438.0,94437.0,0.01338092]
[1736365762088,0.052961,94438.0,94437.0,0.01638092]
[1736365762275,0.052961,94438.0,94420.0,0.10779818]
[1736365762276,0.052961,94438.0,94416.0,0.3608]
[1736365762478,0.3608,94430.0,94416.0,0.3608]
[1736365762681,0.052968,94426.0,94416.0,0.3608]
[1736365762987,0.052969,94425.0,94424.0,0.052969]
[1736365763589,0.052969,94424.0,94421.0,0.052971]
[1736365763780,0.052969,94424.0,94411.0,1.5]
[1736365763986,0.052969,94424.0,94423.0,0.05297]
[1736365764386,0.052971,94421.0,94416.0,0.001]
[1736365764582,0.052971,94421.0,94416.0,0.005]
[1736365764901,0.41377,94422.0,94421.0,0.001]
[1736365765581,0.002,94421.0,94420.0,0.052971]
[1736365766386,0.001,94421.0,94420.0,0.052971]
[1736365767380,0.001,94421.0,94420.0,1.552971]
[1736365768189,0.053971,94422.0,94421.0,0.001]
[1736365768581,0.414771,94422.0,94421.0,0.001]
[1736365768784,0.052971,94421.0,94412.0,1.5]
[1736365768990,0.3608,94413.0,94406.0,0.052979]
[1736365769189,0.0791,94412.0,94403.0,0.0110533]
[1736365769393,0.3608,94405.0,94401.0,1.5]
[1736365769896,0.3608,94405.0,94400.0,0.00158893]
[1736365770393,0.3608,94405.0,94404.0,0.052981]
[1736365771094,0.052978,94410.0,94400.0,0.00158893]
[1736365771288,0.052978,94408.0,94404.0,0.05298]
[1736365771482,0.09759769,94405.0,94404.0,0.052981]
[1736365771986,0.10059769,94405.0,94404.0,0.052981]
[1736365772388,0.10059769,94405.0,94400.0,0.10938711]
[1736365772389,0.0753,94407.0,94400.0,0.10938711]
[1736365772590,0.0753,94407.0,94406.0,0.052979]
[1736365774395,0.0753,94407.0,94400.0,0.00158893]
[1736365774591,0.0753,94407.0,94404.0,0.05298]
[1736365774795,0.0793,94407.0,94404.0,0.05298]
[1736365775091,0.3608,94406.0,94404.0,0.05298]
[1736365775294,0.05298,94405.0,94404.0,0.05298]
[1736365775601,0.052981,94404.0,94401.0,0.052982]
[1736365776784,0.052981,94404.0,94402.0,0.052981]
[1736365776994,0.052981,94403.0,94402.0,0.052981]
[1736365777187,0.001,94404.0,94400.0,0.01303793]
[1736365777387,0.052982,94401.0,94400.0,0.01303793]
[1736365778897,0.001,94404.0,94400.0,0.01303793]
[1736365779092,0.001,94404.0,94403.0,0.052981]
[1736365779295,0.09759769,94405.0,94403.0,0.052981]
[1736365779501,0.18499818,94420.0,94400.0,0.01303793]
[1736365779695,0.052978,94409.0,94400.0,0.01303793]
[1736365779893,0.052978,94409.0,94407.0,0.052979]
[1736365780195,0.413775,94414.0,94408.0,0.052978]
[1736365780401,0.052975,94413.0,94408.0,0.052978]
[1736365780890,0.132076,94412.0,94408.0,0.052978]
[1736365781790,0.001,94409.0,94408.0,0.052978]
[1736365782603,0.135076,94412.0,94408.0,0.052978]
[1736365782802,0.136076,94412.0,94408.0,0.052978]
[1736365783194,0.003,94409.0,94408.0,0.052978]
[1736365783595,0.004,94409.0,94408.0,0.052978]
[1736365783792,0.001,94409.0,94408.0,0.052978]
[1736365783997,0.3608,94433.0,94414.0,0.052975]
[1736365783998,0.0752,94430.0,94414.0,0.052975]
[1736365784301,0.0752,94430.0,94428.0,0.052967]
[1736365784691,0.0752,94430.0,94419.0,0.16077018]
[1736365784692,0.0752,94430.0,94429.0,0.052966]
[1736365784896,0.3608,94433.0,94432.0,0.052964]
[1736365785095,0.3608,94442.0,94439.0,0.052961]
[1736365785699,0.148,94450.0,94439.0,0.052961]
[1736365786008,0.09756709,94441.0,94439.0,0.052961]
[1736365787107,0.148,94450.0,94439.0,0.052961]
[1736365787708,0.3608,94441.0,94439.0,0.052961]
[1736365787902,0.3608,94441.0,94432.0,0.01711273]
[1736365788213,0.052963,94435.0,94428.0,0.052966]
[1736365789108,0.052963,94435.0,94432.0,0.001]
[1736365789405,0.3608,94433.0,94432.0,0.001]
[1736365789607,0.413764,94433.0,94432.0,0.001]
[1736365789995,0.052966,94429.0,94428.0,0.001]
[1736365790200,0.052966,94429.0,94425.0,0.01731564]
[1736365790201,0.05297,94423.0,94413.0,0.052975]
[1736365790402,0.3608,94429.0,94402.0,0.3608]
[1736365790403,0.3608,94416.0,94408.0,0.052978]
[1736365790601,0.052974,94415.0,94400.0,0.58498711]
[1736365790803,0.3608,94406.0,94405.0,0.05298]
[1736365792502,0.3618,94406.0,94405.0,0.05398]
[1736365793607,0.001,94406.0,94405.0,0.05398]
[1736365794111,0.002,94406.0,94405.0,0.05398]
[1736365795498,0.002,94406.0,94405.0,1.55398]
[1736365800501,0.002,94406.0,94405.0,0.05398]
[1736365801403,0.0797,94428.0,94405.0,0.001]
[1736365801609,0.00039285,94440.0,94439.0,0.052959]
[1736365801901,0.3608,94446.0,94445.0,0.052956]
[1736365802105,0.151,94453.0,94445.0,1.5]
[1736365802303,0.151,94453.0,94452.0,0.052952]
[1736365802821,0.0754,94453.0,94452.0,0.052952]
[1736365803714,0.3608,94465.0,94459.0,0.05295]
[1736365803910,0.34186242,94465.0,94464.0,0.052947]
[1736365804111,0.0741,94475.0,94456.0,0.3608]
[1736365804409,0.0741,94475.0,94465.0,0.10779818]
[1736365804621,0.0741,94475.0,94473.0,0.052942]
[1736365805816,0.0781,94475.0,94473.0,0.052942]
[1736365806415,0.0741,94475.0,94473.0,0.052942]
[1736365806718,0.0811,94475.0,94473.0,0.052942]
[1736365807712,0.0841,94475.0,94473.0,0.052942]
[1736365808018,0.0841,94475.0,94473.0,0.07067787]
[1736365808216,0.01,94475.0,94473.0,0.07067787]
[1736365810821,0.01,94475.0,94473.0,0.01773587]
[1736365811023,0.01,94475.0,94468.0,0.052944]
[1736365811222,0.01,94475.0,94469.0,0.052944]
[1736365812124,0.009,94475.0,94469.0,0.052944]
[1736365812321,0.007,94475.0,94469.0,0.052944]
[1736365812834,0.007,94475.0,94466.0,0.01754872]
[1736365813019,0.052948,94462.0,94454.0,0.052953]
[1736365813215,0.3608,94459.0,94444.0,0.3608]
[1736365813419,0.3608,94459.0,94449.0,0.16154813]
[1736365813625,0.1492,94461.0,94458.0,0.05295]
[1736365813820,0.1492,94461.0,94449.0,0.16154813]
[1736365813821,0.1392,94461.0,94449.0,0.16154813]
[1736365814424,0.1392,94461.0,94455.0,0.052952]
[1736365814815,0.052952,94456.0,94449.0,0.052955]
[1736365815027,0.052953,94454.0,94449.0,0.052955]
[1736365815226,0.3608,94450.0,94444.0,0.01789554]
[1736365815529,0.3608,94450.0,94449.0,0.001]
[1736365816324,0.3618,94450.0,94449.0,0.001]
[1736365816523,0.3618,94450.0,94449.0,0.053956]
[1736365817628,0.3618,94450.0,94449.0,0.001]